[Event "Titled Tuesday Blitz July 25 Late 2023"]
[White "Martinez Reyes, Pedro Ramon"]
[Black "Krishna C R G"]
[WhiteFideId "3901807"]
[BlackFideId "5018625"]
[WhiteElo "2529"]
[BlackElo "2753"]
[Result "1-0"]
[Round "6"]
[TimeControl "180+2"]
[Date "2023.07.25"]
[WhiteClock "0:00:47"]
[BlackClock "0:01:26"]
[Board "51"]

1. e4 {[%clk 0:02:56]}  c5 {[%clk 0:02:59]} 2. b3 {[%clk 0:02:55]}  d6 {[%clk 0:02:56]} 3. Bb2 {[%clk 0:02:54]}  Nf6 {[%clk 0:02:56]} 4. Bb5+ {[%clk 0:02:52]}  Bd7 {[%clk 0:02:56]} 5. Bxd7+ {[%clk 0:02:51]}  Qxd7 {[%clk 0:02:56]} 6. d3 {[%clk 0:02:49]}  Nc6 {[%clk 0:02:56]} 7. Nf3 {[%clk 0:02:49]}  e5 {[%clk 0:02:55]} 8. Nbd2 {[%clk 0:02:48]}  g6 {[%clk 0:02:52]} 9. O-O {[%clk 0:02:47]}  Bh6 {[%clk 0:02:52]} 10. Nc4 {[%clk 0:02:44]}  O-O {[%clk 0:02:52]} 11. a4 {[%clk 0:02:43]}  Nd4 {[%clk 0:02:51]} 12. Nxd4 {[%clk 0:02:39]}  cxd4 {[%clk 0:02:50]} 13. c3 {[%clk 0:02:37]}  dxc3 {[%clk 0:02:46]} 14. Bxc3 {[%clk 0:02:38]}  Rfe8 {[%clk 0:02:46]} 15. f4 {[%clk 0:02:36]}  Bg7 {[%clk 0:02:37]} 16. fxe5 {[%clk 0:02:28]}  dxe5 {[%clk 0:02:36]} 17. Nxe5 {[%clk 0:02:26]}  Qc7 {[%clk 0:02:34]} 18. Nc4 {[%clk 0:02:24]}  Ng4 {[%clk 0:02:23]} 19. Qxg4 {[%clk 0:02:23]}  Bxc3 {[%clk 0:02:24]} 20. Rac1 {[%clk 0:02:22]}  Bd4+ {[%clk 0:02:23]} 21. Kh1 {[%clk 0:02:22]}  Qe7 {[%clk 0:02:18]} 22. Rf3 {[%clk 0:02:17]}  Rad8 {[%clk 0:02:10]} 23. Rcf1 {[%clk 0:02:16]}  Rf8 {[%clk 0:02:11]} 24. h4 {[%clk 0:02:09]}  h5 {[%clk 0:02:10]} 25. Qh3 {[%clk 0:02:07]}  b6 {[%clk 0:02:05]} 26. g4 {[%clk 0:02:07]}  hxg4 {[%clk 0:02:03]} 27. Qxg4 {[%clk 0:02:08]}  Kg7 {[%clk 0:02:03]} 28. h5 {[%clk 0:01:59]}  a6 {[%clk 0:01:45]} 29. Kg2 {[%clk 0:01:44]}  b5 {[%clk 0:01:43]} 30. axb5 {[%clk 0:01:42]}  axb5 {[%clk 0:01:44]} 31. Ne3 {[%clk 0:01:36]}  Bxe3 {[%clk 0:01:43]} 32. Rxe3 {[%clk 0:01:36]}  Qc5 {[%clk 0:01:42]} 33. Rg3 {[%clk 0:01:32]}  Rxd3 {[%clk 0:01:37]} 34. h6+ {[%clk 0:00:50]}  Kh7 {[%clk 0:01:26]} 35. Rxf7+ {[%clk 0:00:47]} 1-0


[Site "https://www.chess.com"]

[Event "Titled Tuesday Blitz July 25 Late 2023"]
[White "Gasparyan, David"]
[Black "Matinian, Nikita"]
[WhiteFideId "13311980"]
[BlackFideId "24129100"]
[WhiteElo "2520"]
[BlackElo "2738"]
[Result "0-1"]
[Round "6"]
[TimeControl "180+2"]
[Date "2023.07.25"]
[WhiteClock "0:00:05"]
[BlackClock "0:00:29"]
[Board "54"]

1. d4 {[%clk 0:02:59]}  Nf6 {[%clk 0:02:59]} 2. Nf3 {[%clk 0:02:59]}  g6 {[%clk 0:02:57]} 3. e3 {[%clk 0:02:55]}  Bg7 {[%clk 0:02:57]} 4. Bd3 {[%clk 0:02:55]}  O-O {[%clk 0:02:58]} 5. O-O {[%clk 0:02:55]}  d6 {[%clk 0:02:57]} 6. b3 {[%clk 0:02:52]}  e5 {[%clk 0:02:55]} 7. Nbd2 {[%clk 0:02:44]}  Re8 {[%clk 0:02:51]} 8. dxe5 {[%clk 0:02:38]}  dxe5 {[%clk 0:02:52]} 9. e4 {[%clk 0:02:37]}  b6 {[%clk 0:02:43]} 10. Bb2 {[%clk 0:02:36]}  Nbd7 {[%clk 0:02:43]} 11. Nc4 {[%clk 0:02:28]}  Bb7 {[%clk 0:02:42]} 12. Re1 {[%clk 0:02:27]}  Nh5 {[%clk 0:02:41]} 13. Bf1 {[%clk 0:02:19]}  f6 {[%clk 0:02:24]} 14. a4 {[%clk 0:02:18]}  Bf8 {[%clk 0:02:19]} 15. Ba3 {[%clk 0:02:13]}  Bxa3 {[%clk 0:02:18]} 16. Nxa3 {[%clk 0:02:12]}  Qe7 {[%clk 0:02:17]} 17. Nb5 {[%clk 0:02:10]}  Nc5 {[%clk 0:02:15]} 18. Bc4+ {[%clk 0:02:08]}  Kh8 {[%clk 0:02:14]} 19. Nd2 {[%clk 0:02:04]}  Rad8 {[%clk 0:02:10]} 20. Qe2 {[%clk 0:02:00]}  Nf4 {[%clk 0:02:10]} 21. Qe3 {[%clk 0:01:56]}  f5 {[%clk 0:02:02]} 22. Nc3 {[%clk 0:01:49]}  Qg5 {[%clk 0:01:47]} 23. Bf1 {[%clk 0:01:35]}  Rxd2 {[%clk 0:01:40]} 24. h4 {[%clk 0:01:23]}  Qh6 {[%clk 0:01:27]} 25. g3 {[%clk 0:01:23]}  Nxe4 {[%clk 0:01:08]} 26. gxf4 {[%clk 0:01:14]}  exf4 {[%clk 0:00:51]} 27. Qh3 {[%clk 0:00:36]}  Red8 {[%clk 0:00:51]} 28. Nxe4 {[%clk 0:00:29]}  fxe4 {[%clk 0:00:52]} 29. Qc3+ {[%clk 0:00:24]}  Qg7 {[%clk 0:00:51]} 30. Qxg7+ {[%clk 0:00:20]}  Kxg7 {[%clk 0:00:52]} 31. a5 {[%clk 0:00:19]}  Rxc2 {[%clk 0:00:45]} 32. axb6 {[%clk 0:00:20]}  axb6 {[%clk 0:00:46]} 33. Ra7 {[%clk 0:00:20]}  Bd5 {[%clk 0:00:35]} 34. Bc4 {[%clk 0:00:20]}  Bxc4 {[%clk 0:00:30]} 35. Rxc7+ {[%clk 0:00:20]}  Kh6 {[%clk 0:00:30]} 36. bxc4 {[%clk 0:00:20]}  Rdd2 {[%clk 0:00:29]} 37. Rxe4 {[%clk 0:00:13]}  Rxf2 {[%clk 0:00:29]} 38. Ree7 {[%clk 0:00:08]}  Kh5 {[%clk 0:00:29]} 39. Rxh7+ {[%clk 0:00:07]}  Kg4 {[%clk 0:00:29]} 40. Rhg7 {[%clk 0:00:05]}  Kf3 {[%clk 0:00:29]} 41. Rxg6 {[%clk 0:00:05]}  Rc1# {[%clk 0:00:29]} 0-1


[Site "https://www.chess.com"]

[Event "Titled Tuesday Blitz July 25 Late 2023"]
[White "Fisher_TheGalactic"]
[Black "Shapiro, Viktor"]
[BlackFideId "4175700"]
[WhiteElo "2684"]
[BlackElo "2516"]
[Result "1-0"]
[Round "6"]
[TimeControl "180+2"]
[Date "2023.07.25"]
[WhiteClock "0:00:52"]
[BlackClock "0:00:29"]
[Board "57"]

1. Nf3 {[%clk 0:03:00]}  Nf6 {[%clk 0:02:59]} 2. g3 {[%clk 0:02:59]}  c5 {[%clk 0:02:59]} 3. Bg2 {[%clk 0:03:00]}  Nc6 {[%clk 0:03:00]} 4. O-O {[%clk 0:03:00]}  d5 {[%clk 0:02:59]} 5. d3 {[%clk 0:03:01]}  Bg4 {[%clk 0:03:00]} 6. Nbd2 {[%clk 0:03:01]}  e6 {[%clk 0:03:00]} 7. h3 {[%clk 0:03:01]}  Bh5 {[%clk 0:03:00]} 8. e4 {[%clk 0:03:00]}  Be7 {[%clk 0:03:00]} 9. exd5 {[%clk 0:02:57]}  exd5 {[%clk 0:03:00]} 10. Re1 {[%clk 0:02:55]}  O-O {[%clk 0:03:00]} 11. Nf1 {[%clk 0:02:55]}  h6 {[%clk 0:02:58]} 12. Ne3 {[%clk 0:02:54]}  Re8 {[%clk 0:02:54]} 13. Nf5 {[%clk 0:02:54]}  Bf8 {[%clk 0:02:54]} 14. Rxe8 {[%clk 0:02:51]}  Qxe8 {[%clk 0:02:54]} 15. g4 {[%clk 0:02:51]}  Bg6 {[%clk 0:02:54]} 16. N3h4 {[%clk 0:02:51]}  Bh7 {[%clk 0:02:54]} 17. Be3 {[%clk 0:02:43]}  Qd7 {[%clk 0:02:52]} 18. Qd2 {[%clk 0:02:36]}  Re8 {[%clk 0:02:47]} 19. a3 {[%clk 0:02:09]}  d4 {[%clk 0:02:47]} 20. Bf4 {[%clk 0:02:09]}  Nd5 {[%clk 0:02:43]} 21. Nxh6+ {[%clk 0:01:25]}  gxh6 {[%clk 0:02:41]} 22. Bxh6 {[%clk 0:01:25]}  Re5 {[%clk 0:02:18]} 23. Bxf8 {[%clk 0:01:21]}  Kxf8 {[%clk 0:02:18]} 24. Nf3 {[%clk 0:01:19]}  Nde7 {[%clk 0:01:34]} 25. Nxe5 {[%clk 0:01:15]}  Nxe5 {[%clk 0:01:34]} 26. Re1 {[%clk 0:01:15]}  Qd6 {[%clk 0:01:14]} 27. Qf4 {[%clk 0:01:00]}  N7g6 {[%clk 0:01:09]} 28. Qh6+ {[%clk 0:01:00]}  Kg8 {[%clk 0:01:09]} 29. f4 {[%clk 0:01:00]}  Nd7 {[%clk 0:01:05]} 30. f5 {[%clk 0:00:55]}  Qg3 {[%clk 0:00:49]} 31. Re8+ {[%clk 0:00:54]}  Ngf8 {[%clk 0:00:29]} 32. f6 {[%clk 0:00:52]} 1-0


[Site "https://www.chess.com"]

[Event "Titled Tuesday Blitz July 25 Late 2023"]
[White "Goltsev, Dmitry"]
[Black "Terletsky, Oleg"]
[WhiteFideId "24176710"]
[BlackFideId "14116774"]
[WhiteElo "2678"]
[BlackElo "2516"]
[Result "1-0"]
[Round "6"]
[TimeControl "180+2"]
[Date "2023.07.25"]
[WhiteClock "0:00:38"]
[BlackClock "0:00:03"]
[Board "58"]

1. e4 {[%clk 0:02:59]}  e5 {[%clk 0:02:59]} 2. Nf3 {[%clk 0:02:58]}  Nc6 {[%clk 0:02:59]} 3. Bb5 {[%clk 0:02:58]}  a6 {[%clk 0:02:59]} 4. Ba4 {[%clk 0:02:58]}  Nf6 {[%clk 0:02:59]} 5. O-O {[%clk 0:02:58]}  Be7 {[%clk 0:02:59]} 6. Re1 {[%clk 0:02:57]}  b5 {[%clk 0:02:59]} 7. Bb3 {[%clk 0:02:58]}  d6 {[%clk 0:02:59]} 8. c3 {[%clk 0:02:58]}  O-O {[%clk 0:02:59]} 9. h3 {[%clk 0:02:58]}  Bb7 {[%clk 0:02:59]} 10. d4 {[%clk 0:02:57]}  Re8 {[%clk 0:02:59]} 11. Ng5 {[%clk 0:02:56]}  Rf8 {[%clk 0:02:59]} 12. Nf3 {[%clk 0:02:57]}  h6 {[%clk 0:03:00]} 13. Nh4 {[%clk 0:02:55]}  Na5 {[%clk 0:02:19]} 14. Bc2 {[%clk 0:02:45]}  Nxe4 {[%clk 0:02:11]} 15. Nf5 {[%clk 0:02:39]}  d5 {[%clk 0:01:28]} 16. dxe5 {[%clk 0:02:26]}  Bg5 {[%clk 0:01:18]} 17. Nd2 {[%clk 0:01:34]}  Nxd2 {[%clk 0:00:25]} 18. Bxd2 {[%clk 0:01:34]}  Nc4 {[%clk 0:00:25]} 19. Bc1 {[%clk 0:01:24]}  Re8 {[%clk 0:00:20]} 20. f4 {[%clk 0:01:23]}  Be7 {[%clk 0:00:20]} 21. Qg4 {[%clk 0:01:21]}  g6 {[%clk 0:00:14]} 22. Nxh6+ {[%clk 0:01:21]}  Kf8 {[%clk 0:00:10]} 23. Nxf7 {[%clk 0:01:09]}  Bc5+ {[%clk 0:00:09]} 24. Kh2 {[%clk 0:01:08]}  Kxf7 {[%clk 0:00:08]} 25. Bxg6+ {[%clk 0:01:04]}  Ke7 {[%clk 0:00:06]} 26. f5 {[%clk 0:01:04]}  Kd7 {[%clk 0:00:06]} 27. f6+ {[%clk 0:01:04]}  Kc6 {[%clk 0:00:07]} 28. Bxe8+ {[%clk 0:00:57]}  Qxe8 {[%clk 0:00:07]} 29. e6 {[%clk 0:00:56]}  Kb6 {[%clk 0:00:07]} 30. Bh6 {[%clk 0:00:54]}  Bd6+ {[%clk 0:00:06]} 31. Bf4 {[%clk 0:00:52]}  Bxf4+ {[%clk 0:00:06]} 32. Qxf4 {[%clk 0:00:53]}  Qg6 {[%clk 0:00:06]} 33. f7 {[%clk 0:00:46]}  Rf8 {[%clk 0:00:05]} 34. e7 {[%clk 0:00:43]}  Rxf7 {[%clk 0:00:06]} 35. e8=Q {[%clk 0:00:44]}  Rxf4 {[%clk 0:00:06]} 36. Qxg6+ {[%clk 0:00:44]}  c6 {[%clk 0:00:06]} 37. Re7 {[%clk 0:00:43]}  Rf2 {[%clk 0:00:05]} 38. Qg7 {[%clk 0:00:37]}  Bc8 {[%clk 0:00:05]} 39. Qd4+ {[%clk 0:00:37]}  c5 {[%clk 0:00:03]} 40. Qxf2 {[%clk 0:00:38]} 1-0


[Site "https://www.chess.com"]

[Event "Titled Tuesday Blitz July 25 Late 2023"]
[White "Gubajdullin, Alexei"]
[Black "Toniutti, Ezio"]
[WhiteFideId "4141202"]
[BlackFideId "113034"]
[WhiteElo "2675"]
[BlackElo "2514"]
[Result "1-0"]
[Round "6"]
[TimeControl "180+2"]
[Date "2023.07.25"]
[WhiteClock "0:01:18"]
[BlackClock "0:00:00"]
[Board "59"]

1. d4 {[%clk 0:02:59]}  d5 {[%clk 0:02:59]} 2. Nf3 {[%clk 0:02:59]}  Nf6 {[%clk 0:02:58]} 3. Bf4 {[%clk 0:02:58]}  e6 {[%clk 0:02:58]} 4. e3 {[%clk 0:02:59]}  Bd6 {[%clk 0:02:58]} 5. Nbd2 {[%clk 0:02:59]}  O-O {[%clk 0:02:59]} 6. Bg3 {[%clk 0:02:59]}  c5 {[%clk 0:02:59]} 7. Bd3 {[%clk 0:03:00]}  Qc7 {[%clk 0:02:55]} 8. Bxd6 {[%clk 0:02:57]}  Qxd6 {[%clk 0:02:54]} 9. c4 {[%clk 0:02:57]}  Nc6 {[%clk 0:02:52]} 10. cxd5 {[%clk 0:02:52]}  exd5 {[%clk 0:02:52]} 11. dxc5 {[%clk 0:02:51]}  Qxc5 {[%clk 0:02:52]} 12. Nb3 {[%clk 0:02:50]}  Qb6 {[%clk 0:02:46]} 13. O-O {[%clk 0:02:48]}  Bg4 {[%clk 0:02:46]} 14. Be2 {[%clk 0:02:48]}  Rad8 {[%clk 0:02:38]} 15. Nfd4 {[%clk 0:02:48]}  Bc8 {[%clk 0:02:34]} 16. Rc1 {[%clk 0:02:47]}  Ne5 {[%clk 0:02:34]} 17. Qd2 {[%clk 0:02:46]}  Ne4 {[%clk 0:02:28]} 18. Qa5 {[%clk 0:02:45]}  Qg6 {[%clk 0:02:15]} 19. Kh1 {[%clk 0:02:35]}  a6 {[%clk 0:02:01]} 20. Qc7 {[%clk 0:02:33]}  Rfe8 {[%clk 0:01:55]} 21. Nc5 {[%clk 0:02:06]}  Nxc5 {[%clk 0:01:34]} 22. Rxc5 {[%clk 0:02:05]}  h5 {[%clk 0:01:32]} 23. Nf3 {[%clk 0:01:57]}  Ng4 {[%clk 0:01:16]} 24. h3 {[%clk 0:01:55]}  Nf6 {[%clk 0:01:16]} 25. Ne5 {[%clk 0:01:50]}  Qe4 {[%clk 0:01:01]} 26. Qxf7+ {[%clk 0:01:47]}  Kh7 {[%clk 0:01:01]} 27. Bd3 {[%clk 0:01:47]}  Rxe5 {[%clk 0:00:55]} 28. Bxe4+ {[%clk 0:01:47]}  Nxe4 {[%clk 0:00:56]} 29. Rc7 {[%clk 0:01:46]}  Rg8 {[%clk 0:00:47]} 30. Kg1 {[%clk 0:01:40]}  Rg5 {[%clk 0:00:45]} 31. h4 {[%clk 0:01:39]}  Rg6 {[%clk 0:00:44]} 32. Qxd5 {[%clk 0:01:33]}  Nf6 {[%clk 0:00:37]} 33. Qd3 {[%clk 0:01:31]}  Bh3 {[%clk 0:00:37]} 34. Rc5 {[%clk 0:01:24]}  Bxg2 {[%clk 0:00:22]} 35. Rg5 {[%clk 0:01:23]}  Be4 {[%clk 0:00:20]} 36. Qd4 {[%clk 0:01:23]}  Re8 {[%clk 0:00:18]} 37. Rc1 {[%clk 0:01:21]}  Rxg5+ {[%clk 0:00:10]} 38. hxg5 {[%clk 0:01:21]}  Ng4 {[%clk 0:00:09]} 39. Rc7 {[%clk 0:01:21]}  Re5 {[%clk 0:00:00]} 40. f4 {[%clk 0:01:18]} 1-0


[Site "https://www.chess.com"]

[Event "Titled Tuesday Blitz July 25 Late 2023"]
[White "Sabuk, Piotr"]
[Black "only_strong_moves"]
[WhiteFideId "1137565"]
[WhiteElo "2675"]
[BlackElo "2505"]
[Result "1-0"]
[Round "6"]
[TimeControl "180+2"]
[Date "2023.07.25"]
[WhiteClock "0:00:16"]
[BlackClock "0:00:35"]
[Board "60"]

1. d4 {[%clk 0:03:00]}  d5 {[%clk 0:02:59]} 2. c4 {[%clk 0:02:59]}  e6 {[%clk 0:03:00]} 3. Nf3 {[%clk 0:02:58]}  a6 {[%clk 0:02:59]} 4. cxd5 {[%clk 0:02:53]}  exd5 {[%clk 0:03:00]} 5. Nc3 {[%clk 0:02:53]}  Nf6 {[%clk 0:02:59]} 6. Bf4 {[%clk 0:02:52]}  Be6 {[%clk 0:02:53]} 7. h3 {[%clk 0:02:49]}  Nbd7 {[%clk 0:02:51]} 8. e3 {[%clk 0:02:48]}  Bb4 {[%clk 0:02:48]} 9. Bd3 {[%clk 0:02:48]}  Ne4 {[%clk 0:02:39]} 10. Qc2 {[%clk 0:02:45]}  f5 {[%clk 0:02:35]} 11. O-O {[%clk 0:02:07]}  O-O {[%clk 0:02:30]} 12. Ne2 {[%clk 0:01:29]}  c5 {[%clk 0:02:20]} 13. a3 {[%clk 0:01:22]}  Ba5 {[%clk 0:02:17]} 14. dxc5 {[%clk 0:01:21]}  Ndxc5 {[%clk 0:02:06]} 15. b4 {[%clk 0:01:11]}  Nxd3 {[%clk 0:02:05]} 16. Qxd3 {[%clk 0:01:11]}  Bb6 {[%clk 0:02:03]} 17. Rac1 {[%clk 0:01:10]}  g5 {[%clk 0:01:59]} 18. Be5 {[%clk 0:01:09]}  Bd7 {[%clk 0:01:54]} 19. Qxd5+ {[%clk 0:01:04]}  Rf7 {[%clk 0:01:53]} 20. Rfd1 {[%clk 0:01:03]}  Qe8 {[%clk 0:01:48]} 21. Qxb7 {[%clk 0:00:52]}  Bb5 {[%clk 0:01:38]} 22. Qxb6 {[%clk 0:00:50]}  Bxe2 {[%clk 0:01:38]} 23. Rd5 {[%clk 0:00:40]}  g4 {[%clk 0:01:26]} 24. Nd4 {[%clk 0:00:39]}  Bb5 {[%clk 0:01:18]} 25. Rc7 {[%clk 0:00:34]}  gxh3 {[%clk 0:01:08]} 26. Nxf5 {[%clk 0:00:32]}  h2+ {[%clk 0:00:49]} 27. Kxh2 {[%clk 0:00:30]}  Rxc7 {[%clk 0:00:44]} 28. Qxc7 {[%clk 0:00:18]}  Qh5+ {[%clk 0:00:44]} 29. Kg1 {[%clk 0:00:17]}  Re8 {[%clk 0:00:35]} 30. Qg7# {[%clk 0:00:16]} 1-0


[Site "https://www.chess.com"]

[Event "Titled Tuesday Blitz July 25 Late 2023"]
[White "Plotkin, Victor"]
[Black "Velikanov, Alexander"]
[WhiteFideId "2606674"]
[BlackFideId "2039290"]
[WhiteElo "2504"]
[BlackElo "2666"]
[Result "0-1"]
[Round "6"]
[TimeControl "180+2"]
[Date "2023.07.25"]
[WhiteClock "0:01:35"]
[BlackClock "0:01:33"]
[Board "62"]

1. e4 {[%clk 0:02:55]}  g6 {[%clk 0:03:00]} 2. d4 {[%clk 0:02:53]}  Bg7 {[%clk 0:03:00]} 3. Nc3 {[%clk 0:02:54]}  d6 {[%clk 0:03:00]} 4. f4 {[%clk 0:02:54]}  a6 {[%clk 0:03:00]} 5. Nf3 {[%clk 0:02:54]}  b5 {[%clk 0:03:00]} 6. Bd3 {[%clk 0:02:54]}  Bb7 {[%clk 0:02:57]} 7. O-O {[%clk 0:02:53]}  Nd7 {[%clk 0:02:57]} 8. a4 {[%clk 0:02:52]}  b4 {[%clk 0:02:56]} 9. Ne2 {[%clk 0:02:52]}  c5 {[%clk 0:02:51]} 10. c3 {[%clk 0:02:51]}  Ngf6 {[%clk 0:02:40]} 11. e5 {[%clk 0:02:50]}  Nd5 {[%clk 0:02:40]} 12. Bc4 {[%clk 0:02:46]}  Rc8 {[%clk 0:02:19]} 13. e6 {[%clk 0:02:28]}  fxe6 {[%clk 0:02:18]} 14. Ng5 {[%clk 0:02:28]}  Nf8 {[%clk 0:02:13]} 15. Qb3 {[%clk 0:02:23]}  Qc7 {[%clk 0:01:50]} 16. Nxe6 {[%clk 0:02:20]}  Nxe6 {[%clk 0:01:51]} 17. Bxd5 {[%clk 0:02:20]}  c4 {[%clk 0:01:52]} 18. Bxc4 {[%clk 0:02:01]}  Qxc4 {[%clk 0:01:51]} 19. Qxc4 {[%clk 0:02:01]}  Rxc4 {[%clk 0:01:52]} 20. Be3 {[%clk 0:01:57]}  Kd7 {[%clk 0:01:41]} 21. b3 {[%clk 0:01:57]}  Rxc3 {[%clk 0:01:39]} 22. Nxc3 {[%clk 0:01:56]}  bxc3 {[%clk 0:01:40]} 23. Rac1 {[%clk 0:01:50]}  Nxd4 {[%clk 0:01:38]} 24. Rfe1 {[%clk 0:01:45]}  Nxb3 {[%clk 0:01:33]} 25. Rb1 {[%clk 0:01:35]}  Bd5 {[%clk 0:01:33]} 0-1


[Site "https://www.chess.com"]

[Event "Titled Tuesday Blitz July 25 Late 2023"]
[White "Michalczak, Thomas"]
[Black "Bjelobrk, Igor"]
[WhiteFideId "4622634"]
[BlackFideId "4300726"]
[WhiteElo "2494"]
[BlackElo "2658"]
[Result "0-1"]
[Round "6"]
[TimeControl "180+2"]
[Date "2023.07.25"]
[WhiteClock "0:00:30"]
[BlackClock "0:01:03"]
[Board "64"]

1. e4 {[%clk 0:03:00]}  e6 {[%clk 0:02:57]} 2. d4 {[%clk 0:03:00]}  d5 {[%clk 0:02:56]} 3. Nc3 {[%clk 0:03:01]}  Bb4 {[%clk 0:02:56]} 4. e5 {[%clk 0:03:01]}  b6 {[%clk 0:02:55]} 5. a3 {[%clk 0:03:00]}  Bf8 {[%clk 0:02:53]} 6. h4 {[%clk 0:03:00]}  Ne7 {[%clk 0:02:47]} 7. h5 {[%clk 0:02:59]}  h6 {[%clk 0:02:42]} 8. b4 {[%clk 0:02:59]}  c5 {[%clk 0:02:40]} 9. bxc5 {[%clk 0:02:52]}  bxc5 {[%clk 0:02:39]} 10. dxc5 {[%clk 0:02:50]}  Nec6 {[%clk 0:02:39]} 11. Nf3 {[%clk 0:02:45]}  Bxc5 {[%clk 0:02:35]} 12. Bd3 {[%clk 0:02:45]}  Nd7 {[%clk 0:02:31]} 13. Qe2 {[%clk 0:02:43]}  a6 {[%clk 0:02:21]} 14. O-O {[%clk 0:02:39]}  Qc7 {[%clk 0:02:17]} 15. Bf4 {[%clk 0:02:38]}  Nd4 {[%clk 0:02:09]} 16. Nxd4 {[%clk 0:02:37]}  Bxd4 {[%clk 0:02:09]} 17. Nxd5 {[%clk 0:02:16]}  exd5 {[%clk 0:01:41]} 18. e6 {[%clk 0:02:14]}  Qxf4 {[%clk 0:01:39]} 19. exd7+ {[%clk 0:02:13]}  Kxd7 {[%clk 0:01:39]} 20. Rad1 {[%clk 0:02:02]}  Re8 {[%clk 0:01:33]} 21. Bb5+ {[%clk 0:02:01]}  axb5 {[%clk 0:01:32]} 22. Qxb5+ {[%clk 0:02:01]}  Ke7 {[%clk 0:01:26]} 23. Qb4+ {[%clk 0:01:40]}  Qd6 {[%clk 0:01:26]} 24. Qxd4 {[%clk 0:01:29]}  Kf8 {[%clk 0:01:26]} 25. c4 {[%clk 0:01:22]}  Kg8 {[%clk 0:01:17]} 26. c5 {[%clk 0:01:19]}  Qc6 {[%clk 0:01:13]} 27. Rfe1 {[%clk 0:01:16]}  Rxe1+ {[%clk 0:01:10]} 28. Rxe1 {[%clk 0:01:17]}  Be6 {[%clk 0:01:10]} 29. Re3 {[%clk 0:01:16]}  Ra4 {[%clk 0:01:08]} 30. Qd1 {[%clk 0:00:46]}  Ra5 {[%clk 0:01:07]} 31. Qd2 {[%clk 0:00:30]}  Rxc5 {[%clk 0:01:03]} 0-1


[Site "https://www.chess.com"]

[Event "Titled Tuesday Blitz July 25 Late 2023"]
[White "Danielyan, Vahe"]
[Black "Alboredo, Julia"]
[WhiteFideId "13304828"]
[BlackFideId "2124807"]
[WhiteElo "2642"]
[BlackElo "2489"]
[Result "1-0"]
[Round "6"]
[TimeControl "180+2"]
[Date "2023.07.25"]
[WhiteClock "0:01:33"]
[BlackClock "0:01:03"]
[Board "66"]

1. e4 {[%clk 0:02:59]}  c5 {[%clk 0:02:59]} 2. Nc3 {[%clk 0:03:00]}  Nc6 {[%clk 0:02:59]} 3. Bb5 {[%clk 0:03:00]}  Nd4 {[%clk 0:02:58]} 4. Bc4 {[%clk 0:02:59]}  Nf6 {[%clk 0:02:55]} 5. Nge2 {[%clk 0:02:52]}  Nc6 {[%clk 0:02:45]} 6. d3 {[%clk 0:02:49]}  d6 {[%clk 0:02:44]} 7. O-O {[%clk 0:02:49]}  e6 {[%clk 0:02:44]} 8. f4 {[%clk 0:02:49]}  Be7 {[%clk 0:02:43]} 9. Ng3 {[%clk 0:02:50]}  d5 {[%clk 0:02:43]} 10. Bb5 {[%clk 0:02:49]}  O-O {[%clk 0:02:40]} 11. Bxc6 {[%clk 0:02:45]}  bxc6 {[%clk 0:02:40]} 12. Kh1 {[%clk 0:02:46]}  c4 {[%clk 0:02:28]} 13. e5 {[%clk 0:02:40]}  Ne8 {[%clk 0:02:23]} 14. dxc4 {[%clk 0:02:40]}  Ba6 {[%clk 0:02:23]} 15. cxd5 {[%clk 0:02:37]}  Bxf1 {[%clk 0:02:14]} 16. d6 {[%clk 0:02:37]}  Bxg2+ {[%clk 0:02:13]} 17. Kxg2 {[%clk 0:02:37]}  Bh4 {[%clk 0:02:13]} 18. Nce4 {[%clk 0:02:35]}  f6 {[%clk 0:02:12]} 19. Be3 {[%clk 0:02:25]}  fxe5 {[%clk 0:02:10]} 20. fxe5 {[%clk 0:02:26]}  Qa5 {[%clk 0:01:57]} 21. Qg4 {[%clk 0:02:22]}  Bxg3 {[%clk 0:01:52]} 22. Qxg3 {[%clk 0:02:17]}  Rf5 {[%clk 0:01:52]} 23. Nc5 {[%clk 0:02:10]}  Qb5 {[%clk 0:01:35]} 24. Re1 {[%clk 0:01:46]}  Qxb2 {[%clk 0:01:31]} 25. Bf2 {[%clk 0:01:35]}  Qxc2 {[%clk 0:01:26]} 26. Nxe6 {[%clk 0:01:35]}  h6 {[%clk 0:01:16]} 27. Nd4 {[%clk 0:01:34]}  Rxf2+ {[%clk 0:01:03]} 28. Qxf2 {[%clk 0:01:33]} 1-0


[Site "https://www.chess.com"]

[Event "Titled Tuesday Blitz July 25 Late 2023"]
[White "Pniaczek, Marek"]
[Black "Omelja, Artem"]
[WhiteFideId "21800421"]
[BlackFideId "14119846"]
[WhiteElo "2477"]
[BlackElo "2626"]
[Result "0-1"]
[Round "6"]
[TimeControl "180+2"]
[Date "2023.07.25"]
[WhiteClock "0:00:47"]
[BlackClock "0:02:30"]
[Board "68"]

1. e4 {[%clk 0:03:00]}  c5 {[%clk 0:02:58]} 2. Nf3 {[%clk 0:03:00]}  e6 {[%clk 0:02:58]} 3. d4 {[%clk 0:03:00]}  cxd4 {[%clk 0:02:59]} 4. Nxd4 {[%clk 0:03:01]}  Nf6 {[%clk 0:02:59]} 5. Nc3 {[%clk 0:03:01]}  Nc6 {[%clk 0:03:00]} 6. Ndb5 {[%clk 0:02:59]}  Bc5 {[%clk 0:03:00]} 7. Nd6+ {[%clk 0:02:56]}  Ke7 {[%clk 0:03:00]} 8. Bf4 {[%clk 0:02:57]}  e5 {[%clk 0:03:00]} 9. Nf5+ {[%clk 0:02:57]}  Kf8 {[%clk 0:03:00]} 10. Bg5 {[%clk 0:02:57]}  d6 {[%clk 0:03:01]} 11. Ne3 {[%clk 0:02:31]}  Be6 {[%clk 0:02:56]} 12. Ncd5 {[%clk 0:02:16]}  Qa5+ {[%clk 0:02:48]} 13. c3 {[%clk 0:02:10]}  Nxe4 {[%clk 0:02:47]} 14. b4 {[%clk 0:01:53]}  Bxb4 {[%clk 0:02:45]} 15. cxb4 {[%clk 0:01:50]}  Nxb4 {[%clk 0:02:46]} 16. Be7+ {[%clk 0:01:39]}  Ke8 {[%clk 0:02:37]} 17. Bb5+ {[%clk 0:01:04]}  Nc6+ {[%clk 0:02:37]} 18. Kf1 {[%clk 0:00:47]}  Qxb5+ {[%clk 0:02:30]} 19. Kg1 {[%clk 0:00:47]} 0-1


[Site "https://www.chess.com"]